[Event "*** SCC Grand Prix: Titled Tuesday Blitz"]
[Site "Chess.com"]
[Date "2020.06.09"]
[Round "6"]
[White "rubhani"]
[Black "Paralinch"]
[Result "0-1"]
[WhiteElo "2553"]
[BlackElo "2851"]
[TimeControl "180+1"]
[EndTime "10:09:05 PDT"]
[Termination "Paralinch won by resignation"]

1. e4 {[%clk 0:02:57.1]} 1... c6 {[%clk 0:03:00.2]} 2. d4 {[%clk 0:02:56.6]}
2... d5 {[%clk 0:03:01.1]} 3. e5 {[%clk 0:02:56.4]} 3... Bf5 {[%clk 0:03:01.2]}
4. Nf3 {[%clk 0:02:56.8]} 4... e6 {[%clk 0:03:01.7]} 5. Be2 {[%clk 0:02:57.3]}
5... c5 {[%clk 0:03:01.7]} 6. Be3 {[%clk 0:02:56.9]} 6... Qb6 {[%clk 0:03:01.5]}
7. Nc3 {[%clk 0:02:53]} 7... Nc6 {[%clk 0:03:01.2]} 8. O-O {[%clk 0:02:52.6]}
8... Qxb2 {[%clk 0:03:01.2]} 9. Qe1 {[%clk 0:02:31.9]} 9... cxd4 {[%clk
0:03:00.9]} 10. Bxd4 {[%clk 0:02:32.2]} 10... Nxd4 {[%clk 0:03:00.7]} 11. Nxd4
{[%clk 0:02:31.7]} 11... Bb4 {[%clk 0:03:01.3]} 12. Ndb5 {[%clk 0:02:12.2]}
12... Ba5 {[%clk 0:03:01.3]} 13. Rb1 {[%clk 0:02:11.2]} 13... Qxc2 {[%clk
0:03:01.6]} 14. Rc1 {[%clk 0:02:11.6]} 14... Qb2 {[%clk 0:03:02]} 15. g4 {[%clk
0:01:48.7]} 15... Bg6 {[%clk 0:02:59.3]} 16. f4 {[%clk 0:01:48.5]} 16... Be4
{[%clk 0:02:38.3]} 17. Nd6+ {[%clk 0:01:41.2]} 17... Kf8 {[%clk 0:02:37.7]} 18.
Ndxe4 {[%clk 0:01:39.1]} 18... dxe4 {[%clk 0:02:36.2]} 19. f5 {[%clk 0:01:24.6]}
19... exf5 {[%clk 0:02:37.1]} 20. Rxf5 {[%clk 0:01:22.9]} 20... Nh6 {[%clk
0:02:37.3]} 21. Rf2 {[%clk 0:01:13]} 21... Bb6 {[%clk 0:02:34.3]} 22. Rb1 {[%clk
0:01:02.5]} 22... Qa3 {[%clk 0:02:16.7]} 23. Rxb6 {[%clk 0:00:59.4]} 23... axb6
{[%clk 0:02:17.6]} 24. g5 {[%clk 0:00:59.1]} 24... Rc8 {[%clk 0:01:50.6]} 25.
gxh6 {[%clk 0:00:43.4]} 25... Qxc3 {[%clk 0:01:46.6]} 26. Qf1 {[%clk 0:00:39.8]}
26... Qe3 {[%clk 0:01:41.9]} 27. hxg7+ {[%clk 0:00:30.7]} 27... Kxg7 {[%clk
0:01:42.8]} 28. Kh1 {[%clk 0:00:27.2]} 28... Rc7 {[%clk 0:01:25.7]} 29. Rg2+
{[%clk 0:00:21.3]} 29... Kf8 {[%clk 0:01:25.9]} 30. Qf6 {[%clk 0:00:21.4]} 30...
Rc1+ {[%clk 0:01:25.7]} 31. Bf1 {[%clk 0:00:21.8]} 31... Rxf1+ {[%clk
0:01:23.3]} 32. Qxf1 {[%clk 0:00:22.7]} 32... Qf3 {[%clk 0:01:20.2]} 33. Qc4
{[%clk 0:00:22.2]} 33... e3 {[%clk 0:00:55.3]} 34. Qc8+ {[%clk 0:00:20]} 34...
Ke7 {[%clk 0:00:55.6]} 35. Qxh8 {[%clk 0:00:17.6]} 35... Qf1+ {[%clk 0:00:51.1]}
36. Rg1 {[%clk 0:00:17.7]} 36... Qf3+ {[%clk 0:00:52]} 37. Rg2 {[%clk
0:00:18.1]} 37... Qd1+ {[%clk 0:00:46.4]} 38. Rg1 {[%clk 0:00:18.4]} 38... Qd5+
{[%clk 0:00:41.7]} 39. Rg2 {[%clk 0:00:18.3]} 39... e2 {[%clk 0:00:42.6]} 40.
Qf6+ {[%clk 0:00:18.3]} 40... Kd7 {[%clk 0:00:43.2]} 41. Qf2 {[%clk 0:00:18.2]}
41... Qd1+ {[%clk 0:00:32.1]} 42. Rg1 {[%clk 0:00:18.6]} 42... Ke6 {[%clk
0:00:30.6]} 43. Re1 {[%clk 0:00:18.3]} 43... Qd5+ {[%clk 0:00:28.5]} 44. Qg2
{[%clk 0:00:18.5]} 44... Qc4 {[%clk 0:00:19.4]} 45. Qxe2 {[%clk 0:00:18.6]}
45... Qh4 {[%clk 0:00:17.4]} 46. Rf1 {[%clk 0:00:17.3]} 46... Ke7 {[%clk
0:00:16.7]} 47. Qf2 {[%clk 0:00:16.8]} 47... Qe4+ {[%clk 0:00:16.6]} 48. Qf3
{[%clk 0:00:17.3]} 48... Qc4 {[%clk 0:00:16.2]} 49. Qf6+ {[%clk 0:00:17.3]}
49... Ke8 {[%clk 0:00:16.6]} 50. Rd1 {[%clk 0:00:15.8]} 50... Qe4+ {[%clk
0:00:14.1]} 51. Kg1 {[%clk 0:00:15.2]} 51... Qg4+ {[%clk 0:00:14.4]} 52. Kf2
{[%clk 0:00:14.8]} 52... Qxd1 {[%clk 0:00:15.3]} 53. Qh8+ {[%clk 0:00:15.1]}
53... Kd7 {[%clk 0:00:14.8]} 54. Qxh7 {[%clk 0:00:15]} 54... Qd2+ {[%clk
0:00:13.9]} 55. Kg3 {[%clk 0:00:15.3]} 55... Qg5+ {[%clk 0:00:14.1]} 56. Kf2
{[%clk 0:00:14.5]} 56... Qf4+ {[%clk 0:00:14.4]} 57. Kg2 {[%clk 0:00:14.5]}
57... Qg4+ {[%clk 0:00:13.4]} 58. Kf2 {[%clk 0:00:14.6]} 58... Qf4+ {[%clk
0:00:13.6]} 59. Kg2 {[%clk 0:00:14.7]} 59... Ke6 {[%clk 0:00:13.4]} 60. Qh8
{[%clk 0:00:13.9]} 60... Qg4+ {[%clk 0:00:12.7]} 61. Kf2 {[%clk 0:00:13.7]}
61... Qf4+ {[%clk 0:00:12.8]} 62. Kg2 {[%clk 0:00:14.1]} 62... Qd2+ {[%clk
0:00:13]} 63. Kf3 {[%clk 0:00:14.2]} 63... Qd3+ {[%clk 0:00:12.6]} 64. Kf4
{[%clk 0:00:14.2]} 64... Qd4+ {[%clk 0:00:12.2]} 65. Kf3 {[%clk 0:00:14.7]}
65... Qc3+ {[%clk 0:00:12.3]} 66. Kf4 {[%clk 0:00:15.1]} 66... Qd2+ {[%clk
0:00:12.9]} 67. Kf3 {[%clk 0:00:14.8]} 67... Qd1+ {[%clk 0:00:13.2]} 68. Kf4
{[%clk 0:00:15.1]} 68... Qf1+ {[%clk 0:00:13.6]} 69. Ke4 {[%clk 0:00:15.4]}
69... Qf5+ {[%clk 0:00:13.4]} 70. Kd4 {[%clk 0:00:15.9]} 70... Qf4+ {[%clk
0:00:13.8]} 71. Kd3 {[%clk 0:00:16.2]} 71... Qf3+ {[%clk 0:00:13.5]} 72. Kd4
{[%clk 0:00:16.6]} 72... Qd5+ {[%clk 0:00:13.9]} 73. Ke3 {[%clk 0:00:16.3]}
73... Qc5+ {[%clk 0:00:14.3]} 74. Kf4 {[%clk 0:00:16.5]} 74... Qf2+ {[%clk
0:00:14.6]} 75. Ke4 {[%clk 0:00:16.8]} 75... Qf5+ {[%clk 0:00:14.3]} 76. Kd4
{[%clk 0:00:17.1]} 76... Qg4+ {[%clk 0:00:14.7]} 77. Kd3 {[%clk 0:00:16.8]}
77... Kd5 {[%clk 0:00:15.1]} 78. Qf6 {[%clk 0:00:16.2]} 78... Qh3+ {[%clk
0:00:14.2]} 79. Kc2 {[%clk 0:00:16.2]} 79... Qxh2+ {[%clk 0:00:14.6]} 80. Kb3
{[%clk 0:00:16.6]} 80... Qh3+ {[%clk 0:00:14.2]} 81. Kb4 {[%clk 0:00:16.7]}
81... Qe6 {[%clk 0:00:14.4]} 82. Qf4 {[%clk 0:00:15.7]} 82... Qe7+ {[%clk
0:00:13.7]} 83. Kb5 {[%clk 0:00:15.6]} 83... Qc5+ {[%clk 0:00:13.7]} 84. Ka4
{[%clk 0:00:15.9]} 84... b5+ {[%clk 0:00:13.9]} 85. Kb3 {[%clk 0:00:16.2]} 85...
Qc4+ {[%clk 0:00:14]} 86. Qxc4+ {[%clk 0:00:16.4]} 86... bxc4+ {[%clk
0:00:14.9]} 87. Kc3 {[%clk 0:00:17.3]} 87... Kxe5 {[%clk 0:00:14.6]} 88. Kxc4
{[%clk 0:00:17.6]} 88... Ke4 {[%clk 0:00:15.2]} 89. a4 {[%clk 0:00:16.6]} 89...
f5 {[%clk 0:00:15.6]} 90. a5 {[%clk 0:00:17.5]} 90... f4 {[%clk 0:00:16.1]} 91.
Kb5 {[%clk 0:00:18.4]} 91... f3 {[%clk 0:00:16.7]} 92. Kb6 {[%clk 0:00:19.3]}
92... f2 {[%clk 0:00:17.3]} 93. Kxb7 {[%clk 0:00:20.2]} 93... f1=Q {[%clk
0:00:17.8]} 94. a6 {[%clk 0:00:21.1]} 94... Qb5+ {[%clk 0:00:18]} 0-1

[Event "*** SCC Grand Prix: Titled Tuesday Blitz"]
[Site "Chess.com"]
[Date "2020.06.09"]
[Round "6"]
[White "FairChess_on_YouTube"]
[Black "Andreikka"]
[Result "0-1"]
[WhiteElo "3020"]
[BlackElo "2921"]
[TimeControl "180+1"]
[EndTime "10:09:16 PDT"]
[Termination "Andreikka won on time"]

1. e4 {[%clk 0:03:00.9]} 1... d5 {[%clk 0:02:59.2]} 2. exd5 {[%clk 0:03:00.7]}
2... Qxd5 {[%clk 0:03:00.1]} 3. Nc3 {[%clk 0:03:01.1]} 3... Qa5 {[%clk
0:03:00.5]} 4. d4 {[%clk 0:02:59.1]} 4... Nf6 {[%clk 0:03:00.9]} 5. Nf3 {[%clk
0:02:58.2]} 5... c6 {[%clk 0:03:00.7]} 6. Ne5 {[%clk 0:02:55.6]} 6... Be6 {[%clk
0:02:42.5]} 7. Be2 {[%clk 0:02:55.3]} 7... Nbd7 {[%clk 0:02:41]} 8. Nxd7 {[%clk
0:02:54.5]} 8... Bxd7 {[%clk 0:02:39]} 9. O-O {[%clk 0:02:54.6]} 9... g6 {[%clk
0:02:35.2]} 10. Bf3 {[%clk 0:02:51.2]} 10... Bg7 {[%clk 0:02:31.1]} 11. Re1
{[%clk 0:02:48.5]} 11... Be6 {[%clk 0:02:12.1]} 12. Rxe6 {[%clk 0:02:47.5]}
12... fxe6 {[%clk 0:02:13]} 13. Qe2 {[%clk 0:02:47.9]} 13... O-O {[%clk
0:02:11.3]} 14. Qxe6+ {[%clk 0:02:47.5]} 14... Kh8 {[%clk 0:02:11.8]} 15. Be3
{[%clk 0:02:45.5]} 15... Qb4 {[%clk 0:02:06.3]} 16. Rb1 {[%clk 0:02:36.6]} 16...
Qd6 {[%clk 0:02:05]} 17. Qb3 {[%clk 0:02:35.4]} 17... Qd7 {[%clk 0:01:48.4]} 18.
Rd1 {[%clk 0:02:34]} 18... e6 {[%clk 0:01:46.7]} 19. Ne4 {[%clk 0:02:26]} 19...
Nd5 {[%clk 0:01:37.5]} 20. Bc1 {[%clk 0:02:19.3]} 20... Qe7 {[%clk 0:01:33]} 21.
g3 {[%clk 0:02:14.8]} 21... e5 {[%clk 0:01:25]} 22. c4 {[%clk 0:02:14.3]} 22...
Qb4 {[%clk 0:00:50.4]} 23. Kg2 {[%clk 0:01:39.6]} 23... Qxb3 {[%clk 0:00:37.1]}
24. axb3 {[%clk 0:01:40.5]} 24... Nb4 {[%clk 0:00:37.1]} 25. d5 {[%clk
0:01:40.1]} 25... cxd5 {[%clk 0:00:37.5]} 26. cxd5 {[%clk 0:01:40.3]} 26... Nc2
{[%clk 0:00:38.1]} 27. d6 {[%clk 0:01:36]} 27... Nd4 {[%clk 0:00:34.3]} 28. Bg4
{[%clk 0:01:35.7]} 28... h6 {[%clk 0:00:19.5]} 29. Be3 {[%clk 0:01:20.5]} 29...
Rad8 {[%clk 0:00:19.5]} 30. b4 {[%clk 0:00:55.9]} 30... Rf7 {[%clk 0:00:18.4]}
31. h4 {[%clk 0:00:39.8]} 31... Bf8 {[%clk 0:00:17.6]} 32. Bxd4 {[%clk
0:00:38.1]} 32... exd4 {[%clk 0:00:16.8]} 33. Rxd4 {[%clk 0:00:39]} 33... Bg7
{[%clk 0:00:14.1]} 34. Rd2 {[%clk 0:00:35]} 34... b6 {[%clk 0:00:13.2]} 35. Be6
{[%clk 0:00:31.1]} 35... Rff8 {[%clk 0:00:11.6]} 36. d7 {[%clk 0:00:31.5]} 36...
Be5 {[%clk 0:00:11.8]} 37. f4 {[%clk 0:00:30.3]} 37... Bb8 {[%clk 0:00:12.3]}
38. b5 {[%clk 0:00:25.6]} 38... Kg7 {[%clk 0:00:12.2]} 39. Rd5 {[%clk
0:00:24.3]} 39... Rh8 {[%clk 0:00:11.3]} 40. Kh3 {[%clk 0:00:23]} 40... Kf8
{[%clk 0:00:11.4]} 41. g4 {[%clk 0:00:20.2]} 41... Bxf4 {[%clk 0:00:09.5]} 42.
g5 {[%clk 0:00:17.2]} 42... Ke7 {[%clk 0:00:09.6]} 43. Bg4 {[%clk 0:00:16]}
43... h5 {[%clk 0:00:10.1]} 44. Be2 {[%clk 0:00:16.2]} 44... Rxd7 {[%clk
0:00:10]} 45. Nf6 {[%clk 0:00:16.7]} 45... Rdd8 {[%clk 0:00:06]} 46. Bd3 {[%clk
0:00:16.9]} 46... Kf7 {[%clk 0:00:06]} 47. Bc4 {[%clk 0:00:16.8]} 47... Kg7
{[%clk 0:00:05.4]} 48. Kg2 {[%clk 0:00:14.6]} 48... Rxd5 {[%clk 0:00:05.5]} 49.
Nxd5 {[%clk 0:00:15]} 49... Be5 {[%clk 0:00:05.6]} 50. b3 {[%clk 0:00:14.4]}
50... Rf8 {[%clk 0:00:05.9]} 51. Ne7 {[%clk 0:00:14.1]} 51... Rf4 {[%clk
0:00:04.7]} 52. Bd3 {[%clk 0:00:14.1]} 52... Rxh4 {[%clk 0:00:04.2]} 53. Nxg6
{[%clk 0:00:13.8]} 53... Rg4+ {[%clk 0:00:04.5]} 54. Kf3 {[%clk 0:00:12.9]}
54... Rxg5 {[%clk 0:00:04.6]} 55. Ne7 {[%clk 0:00:13.1]} 55... Kf6 {[%clk
0:00:03.7]} 56. Nd5+ {[%clk 0:00:12.8]} 56... Ke6 {[%clk 0:00:04.2]} 57. Bc4
{[%clk 0:00:12.6]} 57... Kd6 {[%clk 0:00:04.8]} 58. Nc3 {[%clk 0:00:11.8]} 58...
Rg7 {[%clk 0:00:04]} 59. Ne4+ {[%clk 0:00:11.3]} 59... Ke7 {[%clk 0:00:04.6]}
60. Nf2 {[%clk 0:00:10.4]} 60... h4 {[%clk 0:00:05.1]} 61. Ng4 {[%clk
0:00:10.3]} 61... Bd4 {[%clk 0:00:05.6]} 62. Nh6 {[%clk 0:00:10.3]} 62... Kf6
{[%clk 0:00:04.6]} 63. Ng4+ {[%clk 0:00:09]} 63... Kg5 {[%clk 0:00:04.8]} 64.
Nh2 {[%clk 0:00:09.3]} 64... Re7 {[%clk 0:00:05.1]} 65. Kg2 {[%clk 0:00:09.2]}
65... Bc5 {[%clk 0:00:04]} 66. Nf3+ {[%clk 0:00:09.2]} 66... Kg4 {[%clk
0:00:04.3]} 67. Nh2+ {[%clk 0:00:08.3]} 67... Kh5 {[%clk 0:00:04.8]} 68. Bd5
{[%clk 0:00:06.9]} 68... Re2+ {[%clk 0:00:04.5]} 69. Kh3 {[%clk 0:00:06.4]}
69... Re3+ {[%clk 0:00:04.8]} 70. Nf3 {[%clk 0:00:06.6]} 70... Rd3 {[%clk
0:00:03.8]} 71. Bf7+ {[%clk 0:00:06.6]} 71... Kh6 {[%clk 0:00:03.5]} 72. Kg4
{[%clk 0:00:07.2]} 72... h3 {[%clk 0:00:03.5]} 73. Bc4 {[%clk 0:00:07.2]} 73...
Re3 {[%clk 0:00:03.4]} 74. Kf4 {[%clk 0:00:04.6]} 74... Re7 {[%clk 0:00:01.8]}
75. Kg4 {[%clk 0:00:03.9]} 75... Bd6 {[%clk 0:00:02.4]} 76. Kxh3 {[%clk
0:00:03.7]} 76... Kh5 {[%clk 0:00:03]} 77. Nd4 {[%clk 0:00:02.5]} 77... Re3+
{[%clk 0:00:02.7]} 78. Kg2 {[%clk 0:00:03]} 78... Be5 {[%clk 0:00:03.1]} 79. Nf5
{[%clk 0:00:02.9]} 79... Rc3 {[%clk 0:00:03.4]} 80. Ne7 {[%clk 0:00:03]} 80...
Kg5 {[%clk 0:00:04]} 81. Nc6 {[%clk 0:00:03.3]} 81... Bd6 {[%clk 0:00:04.4]} 82.
Nxa7 {[%clk 0:00:03.5]} 82... Kf4 {[%clk 0:00:05]} 83. Nc6 {[%clk 0:00:03.9]}
83... Rc2+ {[%clk 0:00:05.6]} 84. Kf1 {[%clk 0:00:03.5]} 84... Ke3 {[%clk
0:00:05.4]} 85. Nd8 {[%clk 0:00:03]} 85... Bg3 {[%clk 0:00:05.7]} 86. Nf7 {[%clk
0:00:02.5]} 86... Rd2 {[%clk 0:00:05.6]} 87. Kg1 {[%clk 0:00:02.7]} 87... Bf4
{[%clk 0:00:05.7]} 88. Nh8 {[%clk 0:00:01.8]} 88... Kf3 {[%clk 0:00:06.1]} 89.
Ng6 {[%clk 0:00:01.9]} 89... Rd1+ {[%clk 0:00:06.4]} 0-1

[Event "*** SCC Grand Prix: Titled Tuesday Blitz"]
[Site "Chess.com"]
[Date "2020.06.09"]
[Round "6"]
[White "silverback96"]
[Black "djano"]
[Result "1/2-1/2"]
[WhiteElo "2201"]
[BlackElo "2403"]
[TimeControl "180+1"]
[EndTime "10:09:19 PDT"]
[Termination "Game drawn by stalemate"]

1. e4 {[%clk 0:03:00.9]} 1... g6 {[%clk 0:02:58.9]} 2. d4 {[%clk 0:03:00.1]}
2... Bg7 {[%clk 0:02:59.5]} 3. Nc3 {[%clk 0:02:59.6]} 3... d6 {[%clk 0:02:59.9]}
4. Nf3 {[%clk 0:02:58.3]} 4... a6 {[%clk 0:02:57.9]} 5. a4 {[%clk 0:02:54.8]}
5... b6 {[%clk 0:02:56.7]} 6. Bc4 {[%clk 0:02:50.7]} 6... Bb7 {[%clk 0:02:55.1]}
7. Bg5 {[%clk 0:02:45.2]} 7... h6 {[%clk 0:02:52.2]} 8. Be3 {[%clk 0:02:44.9]}
8... e6 {[%clk 0:02:51.8]} 9. Bd3 {[%clk 0:02:44.1]} 9... Nd7 {[%clk 0:02:49.7]}
10. Qd2 {[%clk 0:02:43]} 10... Ne7 {[%clk 0:02:36.5]} 11. h4 {[%clk 0:02:41.5]}
11... d5 {[%clk 0:02:33.4]} 12. e5 {[%clk 0:02:41]} 12... Nf5 {[%clk 0:02:30.6]}
13. Bxf5 {[%clk 0:02:40]} 13... gxf5 {[%clk 0:02:30.7]} 14. a5 {[%clk
0:02:30.6]} 14... c6 {[%clk 0:02:23.1]} 15. Na4 {[%clk 0:02:26.1]} 15... b5
{[%clk 0:02:20.2]} 16. Nc5 {[%clk 0:02:22.1]} 16... Bc8 {[%clk 0:02:18.1]} 17.
Rh3 {[%clk 0:02:12.5]} 17... Bf8 {[%clk 0:02:11.3]} 18. Rg3 {[%clk 0:01:55.4]}
18... Qe7 {[%clk 0:02:07.2]} 19. O-O-O {[%clk 0:01:38]} 19... Rb8 {[%clk
0:02:06.7]} 20. b4 {[%clk 0:01:36.1]} 20... Kd8 {[%clk 0:01:57.4]} 21. Bf4
{[%clk 0:01:24.7]} 21... Kc7 {[%clk 0:01:56.9]} 22. Ne1 {[%clk 0:01:21.6]} 22...
Nxc5 {[%clk 0:01:51.6]} 23. dxc5 {[%clk 0:01:21]} 23... Qxh4 {[%clk 0:01:50.5]}
24. Nf3 {[%clk 0:01:20.2]} 24... Qd8 {[%clk 0:01:49.3]} 25. Nd4 {[%clk
0:01:20.7]} 25... Bd7 {[%clk 0:01:47.8]} 26. Rh1 {[%clk 0:01:18.2]} 26... h5
{[%clk 0:01:36.7]} 27. Rgh3 {[%clk 0:01:17.5]} 27... h4 {[%clk 0:01:36.3]} 28.
g3 {[%clk 0:01:04]} 28... Be7 {[%clk 0:01:33.7]} 29. gxh4 {[%clk 0:01:04.1]}
29... Rxh4 {[%clk 0:01:33.3]} 30. Rxh4 {[%clk 0:01:02.6]} 30... Bxh4 {[%clk
0:01:34.2]} 31. Nf3 {[%clk 0:00:56.1]} 31... Be7 {[%clk 0:01:33.1]} 32. Rh7
{[%clk 0:00:55.9]} 32... Qg8 {[%clk 0:01:32.1]} 33. Rh6 {[%clk 0:00:47.3]} 33...
Qg2 {[%clk 0:01:26]} 34. Ng5 {[%clk 0:00:35.9]} 34... Rg8 {[%clk 0:01:15.1]} 35.
Nxf7 {[%clk 0:00:31.4]} 35... Qf1+ {[%clk 0:01:15.2]} 36. Kb2 {[%clk 0:00:30.7]}
36... Rg1 {[%clk 0:01:14]} 37. Qc1 {[%clk 0:00:25.3]} 37... Qxf2 {[%clk
0:01:04.5]} 38. Be3 {[%clk 0:00:25.1]} 38... Rxc1 {[%clk 0:00:59]} 39. Bxf2
{[%clk 0:00:24.9]} 39... Rf1 {[%clk 0:00:59.4]} 40. Bd4 {[%clk 0:00:24.8]} 40...
f4 {[%clk 0:00:50.5]} 41. Rh7 {[%clk 0:00:20.6]} 41... f3 {[%clk 0:00:50.5]} 42.
Nd6 {[%clk 0:00:18.2]} 42... Kd8 {[%clk 0:00:38]} 43. Rh8+ {[%clk 0:00:16.7]}
43... Kc7 {[%clk 0:00:38.4]} 44. Rh7 {[%clk 0:00:17.1]} 44... Bg5 {[%clk
0:00:32.3]} 45. Rf7 {[%clk 0:00:16]} 45... Bh4 {[%clk 0:00:27.7]} 46. Be3 {[%clk
0:00:11.5]} 46... f2 {[%clk 0:00:26.8]} 47. Bd4 {[%clk 0:00:11.3]} 47... Kd8
{[%clk 0:00:21.3]} 48. Rf8+ {[%clk 0:00:11.2]} 48... Ke7 {[%clk 0:00:19.7]} 49.
Rf7+ {[%clk 0:00:11.6]} 49... Kd8 {[%clk 0:00:20.1]} 50. Rf8+ {[%clk 0:00:12.2]}
50... Kc7 {[%clk 0:00:20.7]} 51. Rf7 {[%clk 0:00:13.1]} 51... Bg3 {[%clk
0:00:15.4]} 52. Kc3 {[%clk 0:00:12.7]} 52... Re1 {[%clk 0:00:14]} 53. Bxf2
{[%clk 0:00:11.5]} 53... Bxe5+ {[%clk 0:00:14.2]} 54. Kb3 {[%clk 0:00:10.9]}
54... Rb1+ {[%clk 0:00:13.5]} 55. Ka2 {[%clk 0:00:10.3]} 55... Rb2+ {[%clk
0:00:13.5]} 56. Ka3 {[%clk 0:00:10.5]} 56... Rxc2 {[%clk 0:00:14.1]} 57. Bh4
{[%clk 0:00:06.6]} 57... Bxd6 {[%clk 0:00:13.9]} 58. cxd6+ {[%clk 0:00:07.5]}
58... Kxd6 {[%clk 0:00:14.3]} 59. Be7+ {[%clk 0:00:08.4]} 59... Ke5 {[%clk
0:00:14.4]} 60. Bf6+ {[%clk 0:00:09.3]} 60... Ke4 {[%clk 0:00:13.9]} 61. Rxd7
{[%clk 0:00:09.4]} 61... e5 {[%clk 0:00:14.4]} 62. Re7 {[%clk 0:00:09.2]} 62...
Kf5 {[%clk 0:00:14.8]} 63. Bxe5 {[%clk 0:00:08.8]} 63... Re2 {[%clk 0:00:15]}
64. Bd6 {[%clk 0:00:09.1]} 64... Rc2 {[%clk 0:00:14.3]} 65. Bc5 {[%clk
0:00:08.9]} 65... Rc3+ {[%clk 0:00:13.4]} 66. Kb2 {[%clk 0:00:08.9]} 66... Rc4
{[%clk 0:00:14.3]} 67. Re3 {[%clk 0:00:09.2]} 67... d4 {[%clk 0:00:14.1]} 68.
Rd3 {[%clk 0:00:09.6]} 68... Ke4 {[%clk 0:00:14.6]} 69. Rd1 {[%clk 0:00:08.9]}
69... d3 {[%clk 0:00:15.5]} 70. Re1+ {[%clk 0:00:09.1]} 70... Kf4 {[%clk
0:00:15.2]} 71. Rf1+ {[%clk 0:00:08.6]} 71... Ke4 {[%clk 0:00:15.1]} 72. Re1+
{[%clk 0:00:08.9]} 72... Kf4 {[%clk 0:00:15.5]} 73. Re3 {[%clk 0:00:09.3]} 73...
Rc2+ {[%clk 0:00:13.5]} 74. Kb3 {[%clk 0:00:09]} 74... Rxc5 {[%clk 0:00:13.5]}
75. Rxd3 {[%clk 0:00:09.1]} 75... Rc4 {[%clk 0:00:14]} 76. Rd6 {[%clk
0:00:09.1]} 76... Ke5 {[%clk 0:00:13.9]} 77. Rd8 {[%clk 0:00:09]} 77... Rc1
{[%clk 0:00:13.8]} 78. Ra8 {[%clk 0:00:09.3]} 78... Rb1+ {[%clk 0:00:13.8]} 79.
Kc3 {[%clk 0:00:08.9]} 79... Kd5 {[%clk 0:00:14.2]} 80. Rxa6 {[%clk 0:00:09.2]}
80... Rc1+ {[%clk 0:00:14.1]} 81. Kb3 {[%clk 0:00:08.9]} 81... Rg1 {[%clk
0:00:13]} 82. Ra8 {[%clk 0:00:08.8]} 82... Rg3+ {[%clk 0:00:13]} 83. Kb2 {[%clk
0:00:09]} 83... Kc4 {[%clk 0:00:13.9]} 84. Rc8 {[%clk 0:00:07.8]} 84... Kxb4
{[%clk 0:00:13.8]} 85. Rxc6 {[%clk 0:00:08.3]} 85... Rg2+ {[%clk 0:00:14.3]} 86.
Rc2 {[%clk 0:00:07.2]} 86... Rxc2+ {[%clk 0:00:13.7]} 87. Kxc2 {[%clk
0:00:08.1]} 87... Kxa5 {[%clk 0:00:14.5]} 88. Kb3 {[%clk 0:00:09]} 88... b4
{[%clk 0:00:14.4]} 89. Kb2 {[%clk 0:00:09.5]} 89... Ka4 {[%clk 0:00:15.3]} 90.
Ka2 {[%clk 0:00:10.4]} 90... b3+ {[%clk 0:00:16.1]} 91. Kb2 {[%clk 0:00:11.3]}
91... Kb4 {[%clk 0:00:17]} 92. Kb1 {[%clk 0:00:12.2]} 92... Ka3 {[%clk
0:00:17.9]} 93. Ka1 {[%clk 0:00:12.4]} 93... b2+ {[%clk 0:00:18.8]} 94. Kb1
{[%clk 0:00:12.9]} 94... Kb3 {[%clk 0:00:19.7]} 1/2-1/2